bitfinex/quotes_BTCUSD_20250525
["timestamp","ask_amount","ask_price","bid_price","bid_amount"]
[1748142052397,0.17140482,107850.0,107820.0,0.03702295]
[1748142052398,0.0358,107830.0,107820.0,0.03702295]
[1748142052607,0.0358,107810.0,107790.0,0.01092031]
[1748142052796,0.0358,107810.0,107800.0,1.051502]
[1748142052996,0.0358,107810.0,107800.0,1.23651]
[1748142053201,0.0358,107810.0,107800.0,1.024384]
[1748142053663,0.0358,107810.0,107800.0,1.03799881]
[1748142055375,0.0358,107810.0,107800.0,1.07498419]
[1748142057568,0.0358,107810.0,107800.0,1.99846419]
[1748142059772,0.0358,107810.0,107800.0,1.44342419]
[1748142059934,0.03519694,107810.0,107800.0,1.07498419]
[1748142060156,0.1247425,107810.0,107800.0,0.74719419]
[1748142060361,0.1247425,107810.0,107800.0,0.39060019]
[1748142060563,0.1247425,107810.0,107800.0,0.66812019]
[1748142061736,0.1247425,107810.0,107800.0,0.77681419]
[1748142061737,0.1267425,107810.0,107800.0,0.77681419]
[1748142061937,0.1267425,107810.0,107800.0,0.66812019]
[1748142062156,0.1267425,107810.0,107800.0,0.03698538]
[1748142062376,0.1267425,107810.0,107800.0,0.27752]
[1748142062995,0.1267425,107810.0,107800.0,0.61752]
[1748142064022,0.1267425,107810.0,107800.0,0.34]
[1748142064238,0.1267425,107810.0,107800.0,0.851042]
[1748142064416,0.10904556,107810.0,107800.0,0.851042]
[1748142064615,0.002,107810.0,107800.0,0.851042]
[1748142064854,0.002,107810.0,107800.0,0.8775685]
[1748142065034,0.0365,107830.0,107800.0,0.5623204]
[1748142065232,0.12604556,107830.0,107810.0,2.30209405]
[1748142065437,0.0365,107830.0,107820.0,1.822624]
[1748142065675,0.0365,107830.0,107810.0,2.273249]
[1748142065863,0.0365,107830.0,107820.0,0.00231838]
[1748142066308,0.0365,107830.0,107820.0,2.26559238]
[1748142066479,0.0365,107830.0,107820.0,2.020561]
[1748142066689,0.0365,107830.0,107810.0,2.273249]
[1748142066895,0.0365,107830.0,107820.0,0.00231838]
[1748142067087,0.0365,107830.0,107820.0,1.74688738]
[1748142067362,0.0385,107830.0,107820.0,1.599479]
[1748142067571,0.0365,107830.0,107820.0,0.92136]
[1748142067774,0.0405,107830.0,107820.0,3.198215]
[1748142067979,0.0405,107830.0,107820.0,3.198212]
[1748142068206,0.0223,107830.0,107820.0,2.486209]
[1748142068417,0.004,107830.0,107820.0,2.486209]
[1748142069674,0.004,107830.0,107820.0,1.564849]
[1748142070475,0.0183,107840.0,107830.0,0.34]
[1748142070679,0.12614556,107840.0,107830.0,1.334752]
[1748142070885,0.12614556,107840.0,107830.0,1.612272]
[1748142071092,0.12614556,107840.0,107830.0,1.535293]
[1748142071410,0.12614556,107840.0,107830.0,1.54930695]
[1748142071593,0.12614556,107840.0,107830.0,1.27945795]
[1748142073202,0.12914556,107840.0,107830.0,1.27945795]
[1748142075735,0.12914556,107840.0,107830.0,1.2882298]
[1748142076779,0.0213,107840.0,107830.0,1.3147563]
[1748142076992,0.003,107840.0,107830.0,1.3147563]
[1748142077195,0.003,107840.0,107830.0,1.3395082]
[1748142077751,0.003,107840.0,107830.0,2.2607482]
[1748142078098,0.003,107840.0,107830.0,1.71674851]
[1748142078300,0.003,107840.0,107830.0,1.69199661]
[1748142078731,0.0164098,107850.0,107830.0,1.69199661]
[1748142078932,0.01691209,107850.0,107840.0,2.27556692]
[1748142079126,0.01691209,107850.0,107840.0,2.273249]
[1748142079539,0.01691209,107850.0,107840.0,2.28202085]
[1748142080136,0.01991209,107850.0,107840.0,2.28202085]
[1748142080554,0.05571209,107850.0,107840.0,2.28202085]
[1748142080756,0.05671209,107850.0,107840.0,0.53524885]
[1748142080963,0.14625765,107850.0,107840.0,0.53524885]
[1748142082210,0.14625765,107850.0,107840.0,0.87524885]
[1748142082821,0.14625765,107850.0,107840.0,0.87520885]
[1748142083434,0.14625765,107850.0,107840.0,0.62621185]
[1748142084462,0.14625765,107850.0,107840.0,0.61744]
[1748142085935,0.14625765,107850.0,107840.0,0.34]
[1748142086152,0.14625765,107850.0,107840.0,0.61744]
[1748142087492,0.14625765,107850.0,107840.0,0.7728]
[1748142087684,0.14625765,107850.0,107840.0,1.53856]
[1748142088460,0.14625765,107850.0,107840.0,0.61744]
[1748142090030,0.02091209,107850.0,107840.0,0.61744]
[1748142090195,0.0196291,107880.0,107840.0,2.72121296]
[1748142090405,0.12682531,107880.0,107850.0,2.32684482]
[1748142090628,0.0175,107870.0,107860.0,2.273249]
[1748142090966,0.0175,107870.0,107860.0,2.2997755]
[1748142091173,0.0175,107870.0,107860.0,2.0599845]
[1748142092201,0.0175,107870.0,107860.0,2.033458]
[1748142092403,0.0175,107870.0,107860.0,2.04222182]
[1748142092583,0.0175,107870.0,107860.0,2.28201282]
[1748142092879,0.0175,107870.0,107860.0,2.62201282]
[1748142093511,0.12534556,107870.0,107860.0,0.34876382]
[1748142093666,0.12534556,107870.0,107860.0,0.75527782]
[1748142095690,0.12534556,107870.0,107860.0,1.05693015]
[1748142097403,0.12534556,107870.0,107860.0,0.47783782]
[1748142097644,0.12534556,107870.0,107860.0,1.58161015]
[1748142098038,0.12534556,107870.0,107860.0,1.27995782]
[1748142099598,0.12534556,107870.0,107860.0,1.12463782]
[1748142100226,0.12534556,107870.0,107860.0,0.75523782]
[1748142101841,0.12534556,107870.0,107860.0,0.47783782]
[1748142102086,0.12534556,107870.0,107860.0,0.00876382]
[1748142102530,0.12534556,107870.0,107860.0,0.28616382]
[1748142102850,0.12534556,107870.0,107860.0,0.2774]
[1748142103481,0.12534556,107870.0,107860.0,0.6174]
[1748142107553,0.12534556,107870.0,107860.0,1.54156]
[1748142108977,0.12534556,107870.0,107860.0,0.34]
[1748142109175,0.12534556,107870.0,107860.0,0.6174]
[1748142109889,0.11999556,107870.0,107860.0,0.2774]
[1748142113706,0.0173,107860.0,107840.0,0.30165233]
[1748142114035,0.12524556,107860.0,107850.0,0.66600977]
[1748142114217,0.12524556,107860.0,107850.0,0.663692]
[1748142114639,0.12524556,107860.0,107850.0,0.96534433]
[1748142114843,0.12524556,107860.0,107850.0,0.99999833]
[1748142115077,0.12524556,107860.0,107850.0,1.27739833]
[1748142115727,0.12524556,107860.0,107850.0,0.79858333]
[1748142115934,0.12524556,107860.0,107850.0,0.48281998]
[1748142116137,0.12524556,107860.0,107850.0,0.138325]
[1748142117384,0.12524556,107860.0,107850.0,0.415725]
[1748142117610,0.12524556,107860.0,107850.0,1.339885]
[1748142118323,0.12524556,107860.0,107850.0,1.679885]
[1748142118532,0.00147975,107880.0,107860.0,0.34]
[1748142118533,0.0357,107870.0,107860.0,0.34]
[1748142118739,0.10684556,107870.0,107860.0,2.42587733]
[1748142118954,0.08954556,107870.0,107860.0,2.42587733]
[1748142119168,0.08954556,107870.0,107860.0,2.34992133]
[1748142119386,0.08954556,107870.0,107860.0,2.06109933]
[1748142119931,0.08731379,107870.0,107860.0,2.06109933]
[1748142120141,0.03717975,107880.0,107860.0,2.06109933]
[1748142120380,0.12672531,107880.0,107860.0,0.64165233]
[1748142121857,0.12672531,107880.0,107850.0,0.2774]
[1748142122034,0.12672531,107880.0,107860.0,1.73967733]
[1748142122253,0.12672531,107880.0,107860.0,0.30165233]
[1748142122663,0.0173,107870.0,107860.0,0.30165233]
[1748142122887,0.0173,107870.0,107860.0,1.11941833]
[1748142123737,0.0173,107870.0,107860.0,0.817766]
[1748142124789,0.0173,107870.0,107860.0,1.121518]
[1748142124961,0.0173,107870.0,107860.0,1.109661]
[1748142125829,0.0359,107870.0,107860.0,1.109661]
[1748142126461,0.10952531,107880.0,107870.0,0.34]
[1748142126673,0.12902531,107880.0,107870.0,0.34]
[1748142127605,0.12902531,107880.0,107870.0,1.26556]
[1748142128829,0.12902531,107880.0,107870.0,0.71084]
[1748142130106,0.11052531,107880.0,107850.0,0.01092031]
[1748142130327,0.0375,107870.0,107860.0,0.57572]
[1748142130567,0.0375,107870.0,107860.0,0.29836]
[1748142130771,0.0375,107870.0,107860.0,0.448644]
[1748142131696,0.0375,107870.0,107860.0,0.457425]
[1748142132074,0.0375,107870.0,107860.0,0.797425]
[1748142135063,0.0375,107870.0,107860.0,0.520065]
[1748142135263,0.0375,107870.0,107860.0,0.740295]
[1748142136126,0.12794556,107870.0,107860.0,0.740295]
[1748142137647,0.12794556,107870.0,107860.0,1.665855]
[1748142137798,0.12794556,107870.0,107860.0,1.111135]
[1748142138412,0.12794556,107870.0,107860.0,0.450096]
[1748142138610,0.12794556,107870.0,107860.0,0.348781]
[1748142138820,0.12704556,107870.0,107860.0,0.626141]
[1748142139628,0.12704556,107870.0,107860.0,0.61736]
[1748142142911,0.12704556,107870.0,107860.0,0.34]
[1748142143108,0.12704556,107870.0,107860.0,0.61736]
[1748142144130,0.12704556,107870.0,107860.0,0.34]
[1748142144300,0.12704556,107870.0,107860.0,0.61736]
[1748142147650,0.12704556,107870.0,107860.0,1.54292]
[1748142148226,0.12704556,107870.0,107860.0,1.5517104]
[1748142148468,0.12704556,107870.0,107860.0,0.9969904]
[1748142150051,0.12704556,107870.0,107860.0,0.6261504]
[1748142150666,0.12704556,107870.0,107860.0,0.3487904]
[1748142150840,0.12704556,107870.0,107860.0,0.6261904]
[1748142152680,0.12704556,107870.0,107860.0,0.6174]
[1748142153600,0.12704556,107870.0,107860.0,0.64167992]
[1748142153784,0.12704556,107870.0,107860.0,0.91907992]
[1748142157649,0.12704556,107870.0,107860.0,1.84363992]
[1748142157861,0.12704556,107870.0,107860.0,1.85243163]
[1748142159144,0.12704556,107870.0,107860.0,0.71863171]
[1748142159358,0.12704556,107870.0,107860.0,0.92787163]
[1748142163969,0.12704556,107870.0,107860.0,0.62619171]
[1748142164316,0.12704556,107870.0,107860.0,0.92787163]
[1748142164496,0.12704556,107870.0,107860.0,0.62619171]
[1748142164902,0.12704556,107870.0,107860.0,0.92787163]
[1748142167574,0.12704556,107870.0,107860.0,1.85243163]
[1748142168160,0.12704556,107870.0,107860.0,1.02031163]
[1748142168355,0.12704556,107870.0,107860.0,0.99603171]
[1748142169017,0.12704556,107870.0,107860.0,1.29771163]
[1748142169444,0.10824556,107870.0,107860.0,0.92787163]
[1748142172154,0.12614556,107870.0,107860.0,0.92787163]
[1748142172798,0.12614556,107870.0,107860.0,1.62910463]
[1748142173909,0.12614556,107870.0,107860.0,1.60455663]
[1748142175556,0.12614556,107870.0,107860.0,1.26401363]
[1748142175864,0.12614556,107870.0,107860.0,0.98661363]
[1748142176077,0.12614556,107870.0,107860.0,1.26401363]
[1748142177411,0.08954556,107870.0,107860.0,1.26401363]
[1748142177618,0.08954556,107870.0,107860.0,2.18857363]
[1748142179954,0.08926744,107870.0,107860.0,2.18857363]
[1748142180079,0.08908202,107870.0,107860.0,1.26401363]
[1748142181751,0.08908202,107870.0,107860.0,1.56559677]
[1748142182844,0.04017975,107880.0,107860.0,1.22559677]
[1748142183047,0.12972531,107880.0,107870.0,1.21285753]
[1748142183386,0.12972531,107880.0,107870.0,0.92918953]
[1748142183617,0.12972531,107880.0,107870.0,0.81751953]
[1748142184404,0.12972531,107880.0,107870.0,0.74581853]
[1748142184598,0.12972531,107880.0,107870.0,0.96146453]
[1748142186976,0.12972531,107880.0,107870.0,0.94753853]
[1748142187431,0.00237975,107880.0,107870.0,1.24917006]
[1748142187634,0.00237975,107880.0,107870.0,1.66441226]
[1748142187864,0.00237975,107880.0,107870.0,1.64176275]
[1748142188780,0.00237975,107880.0,107870.0,1.626261]
[1748142189186,0.00147975,107880.0,107870.0,1.626261]
[1748142189732,0.00147975,107880.0,107870.0,1.32453912]
[1748142189952,0.00147975,107880.0,107870.0,0.98991912]
[1748142190156,0.028557,107920.0,107870.0,1.37095537]
[1748142190157,0.0371,107920.0,107870.0,1.37095537]
[1748142190439,0.0371,107920.0,107890.0,0.0337]
[1748142190440,0.08954556,107910.0,107890.0,0.0337]
[1748142190639,0.08954556,107910.0,107900.0,2.550609]
[1748142190893,0.12584556,107910.0,107900.0,0.378215]
[1748142191093,0.12584556,107910.0,107900.0,0.471094]
[1748142191287,0.03645057,107920.0,107900.0,0.193734]
[1748142191543,0.0363,107910.0,107900.0,0.27736]
[1748142191747,0.0363,107910.0,107900.0,2.56296618]
[1748142191951,0.0363,107910.0,107900.0,2.55435918]
[1748142192270,0.0363,107910.0,107900.0,1.70883118]
[1748142193003,0.0175,107910.0,107900.0,1.70883118]
[1748142193389,0.0175,107910.0,107900.0,2.04883118]
[1748142194088,0.0363,107910.0,107900.0,2.04883118]
[1748142194464,0.0363,107910.0,107900.0,1.56656795]
[1748142194671,0.10849613,107920.0,107900.0,1.56656795]
[1748142194874,0.0175,107910.0,107900.0,0.34]
[1748142195006,0.12599613,107920.0,107900.0,2.91479018]
[1748142195214,0.12599613,107920.0,107910.0,0.30154118]
[1748142195722,0.12599613,107920.0,107910.0,0.57886118]
[1748142197523,0.12599613,107920.0,107910.0,1.50170118]
[1748142197936,0.12599613,107920.0,107910.0,0.94710118]
[1748142198144,0.12599613,107920.0,107910.0,0.57886118]
[1748142198984,0.12599613,107920.0,107910.0,0.27732]
[1748142199193,0.12599613,107920.0,107910.0,0.57886118]
[1748142200407,0.12599613,107920.0,107910.0,0.91886118]
[1748142201746,0.12599613,107920.0,107910.0,0.95127906]
[1748142202919,0.12599613,107920.0,107910.0,0.67395906]
[1748142203100,0.12599613,107920.0,107910.0,0.64969788]
[1748142204469,0.12599613,107920.0,107910.0,0.95123906]
[1748142205123,0.12599613,107920.0,107910.0,0.37241788]
[1748142205326,0.14053698,107920.0,107910.0,0.37241788]
[1748142205482,0.14053698,107920.0,107910.0,0.64969788]
[1748142205694,0.83723698,107920.0,107910.0,0.37241788]
[1748142205880,0.78639613,107920.0,107910.0,0.57882118]
[1748142206092,0.08969613,107920.0,107910.0,0.57882118]
[1748142206297,0.08969613,107920.0,107910.0,0.61134109]
[1748142206606,0.12569613,107920.0,107910.0,0.61134109]
[1748142207401,0.12569613,107920.0,107910.0,0.95134109]
[1748142207602,0.12569613,107920.0,107910.0,1.31954109]
[1748142208208,0.12569613,107920.0,107910.0,0.95134109]
[1748142211017,0.12569613,107920.0,107910.0,0.64979991]
[1748142211226,0.12569613,107920.0,107910.0,0.95134109]
[1748142214200,0.12689613,107920.0,107910.0,0.95134109]
[1748142216253,0.12689613,107920.0,107910.0,0.64979991]
[1748142216456,0.12689613,107920.0,107910.0,0.95134109]
[1748142217551,0.12689613,107920.0,107910.0,1.87746109]
[1748142218209,0.12689613,107920.0,107910.0,1.32298109]
[1748142219260,0.12689613,107920.0,107910.0,0.67318118]
[1748142220380,0.10819613,107920.0,107910.0,0.30154118]
[1748142220518,0.10819613,107920.0,107910.0,0.57882118]
[1748142221366,0.10819613,107920.0,107910.0,0.30467777]
[1748142221565,0.10819613,107920.0,107910.0,0.94621895]
[1748142223400,0.10819613,107920.0,107910.0,0.64467777]
[1748142223401,0.12689613,107920.0,107910.0,0.64467777]
[1748142223606,0.12689613,107920.0,107910.0,0.94621895]
[1748142224529,0.08969613,107920.0,107910.0,0.94621895]
[1748142224872,0.10729613,107920.0,107910.0,0.94621895]
[1748142225084,0.00015057,107920.0,107910.0,3.15412213]
[1748142225309,0.0006,107940.0,107920.0,0.0341]
[1748142225503,0.0372,107950.0,107930.0,2.13171297]
[1748142225715,0.12674556,107950.0,107940.0,0.30154118]
[1748142225927,0.12674556,107950.0,107940.0,0.49222418]
[1748142227727,0.12674556,107950.0,107940.0,1.41834418]
[1748142227931,0.12679573,107950.0,107940.0,1.41834418]
[1748142228267,0.12679573,107950.0,107940.0,0.86386418]
[1748142228466,0.12679573,107950.0,107940.0,0.49222418]
[1748142228893,0.12679573,107950.0,107940.0,0.530683]
[1748142230587,0.12679573,107950.0,107940.0,0.459494]
[1748142230783,0.12679573,107950.0,107940.0,0.61724]
[1748142231033,0.14133658,107950.0,107940.0,0.34]
[1748142231204,0.14133658,107950.0,107940.0,0.61724]
[1748142231904,0.14133658,107950.0,107910.0,0.02739777]
[1748142231905,0.10473658,107950.0,107910.0,0.02739777]
[1748142232114,0.0176,107920.0,107900.0,0.04502031]
[1748142232329,0.0176,107920.0,107910.0,0.499666]
[1748142232527,0.0176,107920.0,107910.0,0.50839176]
[1748142232727,0.0366,107920.0,107910.0,0.50839176]
[1748142232952,0.09014556,107940.0,107910.0,0.54249176]
[1748142233153,0.12674556,107940.0,107920.0,1.184134]
[1748142233359,0.12674556,107940.0,107930.0,0.27724]
[1748142233741,0.12674556,107940.0,107930.0,0.798673]
[1748142233988,0.12674556,107940.0,107930.0,0.536385]
[1748142234128,0.12674556,107940.0,107930.0,0.459045]
[1748142235612,0.01805017,107950.0,107930.0,0.799045]
[1748142235748,0.12649573,107950.0,107930.0,0.61724]
[1748142237577,0.12649573,107950.0,107940.0,0.92604]
[1748142239529,0.12649573,107950.0,107940.0,0.3716]
[1748142242220,0.12649573,107950.0,107930.0,0.61724]
[1748142244655,0.12599573,107950.0,107930.0,0.6172]
[1748142244824,0.10769573,107950.0,107940.0,0.2772]
[1748142245035,0.12559573,107950.0,107940.0,0.2772]
[1748142246000,0.12036573,107950.0,107940.0,0.2772]
[1748142246376,0.0179,107940.0,107930.0,0.34]
[1748142246578,0.10744556,107940.0,107930.0,0.6172]
[1748142246913,0.08954556,107940.0,107930.0,0.6172]
[1748142247114,0.0627108,107960.0,107940.0,0.34]
[1748142247324,0.08954556,107950.0,107940.0,0.34]
[1748142247522,0.08954556,107950.0,107940.0,1.895821]
[1748142248735,0.06321256,107960.0,107940.0,1.520901]
[1748142248938,0.04531256,107960.0,107950.0,1.339805]
[1748142249176,0.06321256,107960.0,107950.0,1.35346353]
[1748142249332,0.03547156,107960.0,107950.0,1.20326453]
[1748142249542,0.03547156,107960.0,107950.0,1.17567753]
[1748142249883,0.03547156,107960.0,107950.0,1.06837453]
[1748142250241,0.03547156,107960.0,107950.0,1.00527953]
[1748142250664,0.03547156,107960.0,107950.0,0.92755353]
[1748142250878,0.01757156,107960.0,107950.0,0.92755353]
[1748142253042,0.01697156,107960.0,107950.0,0.96465353]
[1748142253246,0.01697156,107960.0,107950.0,0.98815456]
[1748142253452,0.01697156,107960.0,107950.0,0.96465353]
[1748142254661,0.01697156,107960.0,107950.0,1.25059358]
[1748142256877,0.01697156,107960.0,107950.0,0.93629358]
[1748142257097,0.03617156,107960.0,107950.0,0.92713658]
[1748142257595,0.03617156,107960.0,107950.0,1.85633658]
[1748142258171,0.03617156,107960.0,107950.0,0.64123653]
[1748142258377,0.03617156,107960.0,107950.0,1.29327653]
[1748142258736,0.05487156,107960.0,107950.0,0.91839653]
[1748142261083,0.05487156,107960.0,107950.0,0.76208953]
[1748142262850,0.14441712,107960.0,107950.0,0.48492953]
[1748142263045,0.14441712,107960.0,107950.0,0.29081853]
[1748142263209,0.14441712,107960.0,107950.0,0.01365853]
[1748142263409,0.14441712,107960.0,107950.0,0.27716]
[1748142263753,0.12105797,107960.0,107950.0,0.27716]
[1748142263958,0.12105797,107960.0,107920.0,0.01092031]
[1748142264168,0.12105797,107960.0,107900.0,0.04762031]
[1748142264169,0.0379,107940.0,107900.0,0.04762031]
[1748142264376,0.0182,107920.0,107900.0,0.01092031]
[1748142264580,0.0363,107920.0,107910.0,0.27716]
[1748142264788,0.0363,107920.0,107910.0,0.37848]
[1748142265745,0.0363,107920.0,107910.0,0.37853017]
[1748142266166,0.0363,107920.0,107910.0,0.10137017]
[1748142266426,0.0363,107920.0,107910.0,0.37857017]
[1748142267035,0.0363,107920.0,107910.0,0.10137017]
[1748142267210,0.0363,107920.0,107910.0,0.71857017]
[1748142267549,0.0363,107920.0,107910.0,1.64777017]
[1748142269209,0.0363,107920.0,107910.0,1.09345017]
[1748142270325,0.0363,107920.0,107910.0,0.71857017]
[1748142273518,0.0363,107920.0,107910.0,1.32130577]
[1748142273722,0.12844556,107930.0,107910.0,0.49131915]
[1748142273901,0.12844556,107930.0,107920.0,0.30368407]
[1748142274098,0.12844556,107930.0,107920.0,0.3013678]
[1748142274930,0.12844556,107930.0,107920.0,0.5786078]
[1748142275955,0.12844556,107930.0,107920.0,0.27724]
[1748142276160,0.12844556,107930.0,107920.0,0.5786078]
[1748142277574,0.12844556,107930.0,107920.0,1.5080078]
[1748142278301,0.12844556,107930.0,107920.0,1.8480078]
[1748142278659,0.12844556,107930.0,107920.0,0.9186078]
[1748142279743,0.12844556,107930.0,107920.0,2.5494838]
[1748142279895,0.12844556,107930.0,107920.0,1.8753298]
[1748142280098,0.12844556,107930.0,107920.0,0.957763]
[1748142280369,0.12844556,107930.0,107920.0,1.0417808]
[1748142283811,0.12844556,107930.0,107920.0,0.740413]
[1748142284015,0.12844556,107930.0,107920.0,1.0417808]
[1748142286135,0.0195,107930.0,107920.0,1.0417808]
[1748142286339,0.0357,107950.0,107920.0,1.0383486]
[1748142286536,0.12524556,107950.0,107940.0,0.3013678]
[1748142286774,0.12524556,107950.0,107920.0,0.31244]
[1748142287003,0.12524556,107950.0,107940.0,0.3013678]
[1748142287571,0.12524556,107950.0,107940.0,1.2326478]
[1748142288429,0.12524556,107950.0,107940.0,0.93128]
[1748142289830,0.12524556,107950.0,107880.0,0.05578109]
[1748142289963,0.0188,107940.0,107900.0,0.0739269]
[1748142290149,0.0188,107940.0,107910.0,2.26147456]
[1748142290354,0.0188,107940.0,107920.0,2.171929]
[1748142290553,0.0366,107940.0,107920.0,0.806544]
[1748142290754,0.0366,107940.0,107920.0,1.43139933]
[1748142291011,0.0366,107940.0,107930.0,1.142401]
[1748142291888,0.0188,107940.0,107930.0,1.142401]
[1748142292443,0.0366,107940.0,107930.0,1.142401]
[1748142297552,0.0366,107940.0,107930.0,2.073641]
[1748142297753,0.10744556,107950.0,107930.0,1.519241]
[1748142297927,0.12514556,107950.0,107940.0,0.95153]
[1748142298292,0.12514556,107950.0,107940.0,0.932709]
[1748142298966,0.12514556,107950.0,107940.0,0.92207]
[1748142299301,0.12514556,107950.0,107940.0,0.5819]
[1748142300154,0.12486764,107950.0,107940.0,0.9219]
[1748142300356,0.0356,107950.0,107940.0,0.9219]
[1748142301887,0.0356,107950.0,107940.0,0.93062961]
[1748142302093,0.0382,107970.0,107940.0,1.0507762]
[1748142302294,0.11384556,107980.0,107960.0,0.34]
[1748142302501,0.11434736,107980.0,107970.0,2.49423113]
[1748142302642,0.0248018,107980.0,107970.0,1.94962]
[1748142302858,0.0248018,107980.0,107970.0,1.930279]
[1748142303852,0.0055018,107980.0,107970.0,1.930279]
[1748142304968,0.0055018,107980.0,107970.0,1.483721]
[1748142307528,0.0055018,107980.0,107970.0,2.414721]
[1748142308108,0.0055018,107980.0,107970.0,1.860441]
[1748142308809,0.0055018,107980.0,107970.0,1.860401]
[1748142309029,0.0055018,107980.0,107970.0,1.483681]
[1748142311480,0.0055018,107980.0,107970.0,1.357062]
[1748142312891,0.0055018,107980.0,107970.0,1.079902]
[1748142313097,0.0248018,107980.0,107970.0,1.357022]
[1748142313546,0.0248018,107980.0,107970.0,1.079902]
[1748142313749,0.0248018,107980.0,107970.0,1.357022]
[1748142314104,0.0437018,107980.0,107970.0,1.357022]
[1748142317558,0.0248018,107980.0,107970.0,1.730342]
[1748142318515,0.0248018,107980.0,107970.0,1.079902]
[1748142318688,0.0447018,107980.0,107970.0,0.514486]
[1748142318889,0.0447018,107980.0,107970.0,0.77243]
[1748142322164,0.0447018,107980.0,107970.0,0.49531]
[1748142322413,0.0447018,107980.0,107970.0,0.77243]
[1748142324704,0.0447018,107980.0,107970.0,0.61708]
[1748142324912,0.0447018,107980.0,107970.0,0.730417]
[1748142325763,0.0447018,107980.0,107970.0,0.718659]
[1748142326918,0.0447018,107980.0,107970.0,0.732401]
[1748142327602,0.0447018,107980.0,107970.0,1.659841]
[1748142329492,0.0447018,107980.0,107970.0,0.455321]
[1748142329710,0.0447018,107980.0,107970.0,0.732401]
[1748142332309,0.0447018,107980.0,107970.0,0.74114706]
[1748142332947,0.13424736,107980.0,107970.0,0.34874606]
[1748142333153,0.13424736,107980.0,107970.0,0.62582606]
[1748142334324,0.0182,107960.0,107930.0,0.01450872]
[1748142334496,0.12784556,107950.0,107940.0,0.27708]
[1748142334689,0.0383,107940.0,107930.0,0.01450872]
[1748142335063,0.0383,107940.0,107930.0,0.29162872]
[1748142335226,0.0383,107940.0,107930.0,0.49093772]
[1748142335594,0.0383,107940.0,107930.0,0.48518158]
[1748142336218,0.0383,107940.0,107930.0,0.54806158]
[1748142336420,0.0383,107940.0,107930.0,0.82518158]
[1748142336589,0.0383,107940.0,107930.0,0.816429]
[1748142337664,0.0383,107940.0,107930.0,1.743949]
[1748142337829,0.0383,107940.0,107930.0,1.684338]
[1748142338041,0.0383,107940.0,107930.0,1.672834]
[1748142340104,0.0383,107940.0,107930.0,0.468194]
[1748142340422,0.0383,107940.0,107930.0,0.745314]
[1748142342942,0.12784556,107940.0,107930.0,0.34]
[1748142343107,0.12844556,107940.0,107930.0,0.61716]
[1748142347577,0.12844556,107940.0,107930.0,1.14676]
[1748142347786,0.12784556,107940.0,107930.0,1.14676]
[1748142349153,0.12784556,107940.0,107930.0,0.61716]
[1748142357688,0.12784556,107940.0,107930.0,1.546]
[1748142358493,0.12784556,107940.0,107930.0,0.9916]
[1748142360435,0.12784556,107940.0,107930.0,0.61716]
[1748142363442,0.08954556,107940.0,107930.0,1.82748003]
[1748142363667,0.0378,107950.0,107930.0,1.82748003]
[1748142363801,0.12734556,107950.0,107930.0,0.61716]
[1748142364002,0.12734556,107950.0,107930.0,0.63316]
[1748142365433,0.12734556,107950.0,107930.0,0.64190307]
[1748142365678,0.0378,107960.0,107940.0,1.773885]
[1748142365898,0.09004736,107970.0,107960.0,0.016]
[1748142366123,0.0005018,107970.0,107960.0,2.46748429]
[1748142366335,0.0005018,107970.0,107960.0,2.465169]
[1748142366732,0.0005018,107970.0,107960.0,1.663012]
[1748142367281,0.0005018,107970.0,107960.0,1.679012]
[1748142367488,0.0005018,107970.0,107960.0,2.233332]
[1748142367643,0.0005018,107970.0,107960.0,2.61647507]
[1748142367849,0.0005018,107970.0,107960.0,2.60047507]
[1748142368048,0.0005018,107970.0,107960.0,2.36975007]
[1748142368720,0.0005018,107970.0,107960.0,2.701007]
[1748142370212,0.12784736,107970.0,107960.0,0.34]
[1748142370414,0.12784736,107970.0,107960.0,0.6172]
[1748142371056,0.0005018,107970.0,107960.0,0.6172]
[1748142371244,0.0005018,107970.0,107960.0,2.789129]
[1748142371475,0.0005018,107970.0,107960.0,2.583822]
[1748142376912,0.0005018,107970.0,107960.0,2.451845]
[1748142377140,0.0005018,107970.0,107960.0,2.384726]
[1748142377465,0.0005018,107970.0,107960.0,3.308326]
[1748142378362,0.0005018,107970.0,107960.0,2.661806]
[1748142378587,0.0367018,107970.0,107960.0,0.98652]
[1748142378791,0.0367018,107970.0,107960.0,1.096101]
[1748142378993,0.12624736,107970.0,107960.0,0.98652]
[1748142381514,0.12624736,107970.0,107960.0,0.34]
[1748142382332,0.12624736,107970.0,107960.0,0.61712]
[1748142387476,0.12624736,107970.0,107960.0,1.17132]
[1748142387642,0.12624736,107970.0,107960.0,1.54072]
[1748142388482,0.12624736,107970.0,107960.0,0.98652]
[1748142388983,0.12624736,107970.0,107960.0,0.61712]
[1748142389202,0.12624736,107970.0,107960.0,1.245596]
[1748142389403,0.12624736,107970.0,107960.0,0.774751]
[1748142389901,0.12624736,107970.0,107960.0,0.762441]
[1748142390670,0.12124736,107970.0,107960.0,0.762441]
[1748142391106,0.12124736,107970.0,107960.0,0.34]
[1748142391414,0.12124736,107970.0,107960.0,0.61712]
[1748142392820,0.12124736,107970.0,107960.0,0.34]
[1748142392979,0.12124736,107970.0,107960.0,0.61712]
[1748142393181,0.12124736,107970.0,107960.0,0.42530613]
[1748142394211,0.12124736,107970.0,107960.0,0.27712]
[1748142395274,0.12124736,107970.0,107940.0,0.0261]
[1748142395476,0.12184736,107970.0,107960.0,0.27712]
[1748142397559,0.12184736,107970.0,107960.0,1.54072]
[1748142397787,0.12184736,107970.0,107960.0,0.98652]
[1748142398104,0.12184736,107970.0,107960.0,0.61712]
[1748142402842,0.12184736,107970.0,107960.0,0.34]
[1748142403012,0.12184736,107970.0,107960.0,0.61716]
[1748142403212,0.12184736,107970.0,107960.0,0.34]
[1748142403213,0.13578821,107970.0,107960.0,0.34]
[1748142403418,0.13578821,107970.0,107960.0,0.61716]
[1748142404184,0.13578821,107970.0,107960.0,0.34]
[1748142404390,0.13578821,107970.0,107960.0,0.61716]
[1748142406173,0.13578821,107970.0,107960.0,0.34]
[1748142406611,0.13578821,107970.0,107960.0,0.61716]
[1748142407524,0.13578821,107970.0,107960.0,1.53728]
[1748142408349,0.13578821,107970.0,107960.0,0.34]
[1748142408675,0.13578821,107970.0,107960.0,0.983]
[1748142409140,0.13578821,107970.0,107960.0,0.76969181]
[1748142409455,0.13578821,107970.0,107960.0,0.643]
[1748142410467,0.13578821,107970.0,107960.0,0.27716]
[1748142411459,0.10408641,107970.0,107960.0,0.27716]